Cogmind - Beta 13 @@@ ROGUE MODE // 2024.04.26 @ 19:08:54 Player: monkeman Result: Destroyed by G-47 Trooper with Particle Gun Performance ------------- Evolutions (0) 0 Regions Visited (2) 400 Robots Destroyed (34) 170 Value Destroyed (769) 769 Prototype IDs (4) 80 Alien Tech Used (0) 0 Bonus (0) 0 TOTAL SCORE: 1419 Bonus ------- None Cogmind --------- Core Integrity 0/250 Matter 266/300 Energy 250/250 System Corruption 0% Temperature Cool (22) Movement Treading (480) Ox4 Location -10/Mines Parts ------- > --- POWER (1) -------- Ion Engine > --- PROPULSION (2) --- Light Treads Wheel > --- UTILITY (2) ------ Huge Storage Unit Light Armor Plating > --- WEAPON (2) ------- Shotgun Shotgun > --- INVENTORY (25) --- Ion Engine Light Treads Wheel Wheel Improved Heat Sink Small Storage Unit High-capacity Matter Pod (200) Structural Scanner Experimental Sensor Array Targeting Computer Hacking Suite Hacking Suite Tractor Beam Small Laser Small Laser Beam Cannon Light Assault Rifle Light Assault Rifle Light Assault Rifle Shotgun Welding Torch Peak State ------------ > --- POWER ------------ Ion Engine > --- PROPULSION ------- Light Treads Wheel > --- UTILITY ---------- Huge Storage Unit Experimental Sensor Array > --- WEAPON ----------- Shotgun Shotgun > --- INVENTORY -------- Ion Engine Light Treads Wheel Wheel Small Storage Unit High-capacity Matter Pod Terrain Scanner Improved Terrain Scanner Hacking Suite Hacking Suite Tractor Beam Small Laser Light Assault Rifle Light Assault Rifle Shotgun Welding Torch [Rating: 19] Favorites ----------- Power Ion Engine Engine Ion Engine Propulsion Light Treads Treads Light Treads Wheel Wheel Utility Improved Terrain Scanner Device Improved Terrain Scanner Storage Huge Storage Unit Protection Light Armor Plating Weapon Shotgun Energy Gun EM Pulse Gun Ballistic Gun Shotgun Build | -11 -10 -10 ------- Run | Yrd Mat Min Slots Evolved . | . . . Power . | . . . Propulsion . | . . . Utility . | . . . Weapon . | . . . Parts Attached 20 | 7 8 5 Power 2 | 1 1 . Engine 2 | 1 1 . Core . | . . . Reactor . | . . . Propulsion 3 | 2 1 . Treads 2 | 2 . . Leg . | . . . Wheel 1 | . 1 . Hover . | . . . Flight . | . . . Utility 8 | 2 1 5 Device 5 | 1 . 4 Storage 2 | 1 1 . Processor . | . . . Hackware . | . . . Protection 1 | . . 1 Artifact . | . . . Weapon 7 | 2 5 . Energy Gun 3 | 2 1 . Energy Cannon . | . . . Ballistic Gun 4 | . 4 . Ballistic Cannon . | . . . Launcher . | . . . Special Weapon . | . . . Impact Weapon . | . . . Slashing Weapon . | . . . Piercing Weapon . | . . . Special Melee Weapon . | . . . Unidentified Prototypes 1 | . . 1 Parts Lost 4 | . 3 1 Power . | . . . Propulsion 1 | . 1 . Utility 1 | . . 1 Weapon 2 | . 2 . Highest Loss Streak 1 | . 1 1 To Critical Strikes . | . . . Average Slot Usage (%) 99 | . 99 99 Engine 14 | . 14 14 Treads 22 | . 25 14 Wheel 5 | . 2 14 Device 13 | . 14 11 Storage 14 | . 14 14 Energy Gun 6 | . 8 . Ballistic Gun 21 | . 19 28 Naked Turns . | . . . Heaviest Build 94 | 14 92 94 Greatest Support 40 | 40 40 10 Greatest Overweight (x) 9 | . 9 9 Average Overweight (x) 3 | . 1 9 Largest Inventory Capacity 25 | 8 25 25 Average Capacity 17 | 7 15 25 Most Carried 21 | 4 17 21 Average Carried 10 | 3 9 16 Final Capacity 25 | 8 25 25 Final Carried 21 | 4 15 21 Class Distribution -------------------- 100% | Mutant Dominant Class ---------------- Mutant | -10/Materials Mutant | -10/Mines Resources | -11 -10 -10 ----------- Run | Yrd Mat Min Matter Collected 1094 | 249 610 235 Remotely . | . . . Salvage Created 938 | 30 697 211 Parts 69 | 2 58 9 Haulers Intercepted 1 | . 1 . Recyclers Shooed 1 | . 1 . Parts Field Recycled . | . . . Retrieved Matter . | . . . Parts Self-Destructed . | . . . Prevented . | . . . Kills | -11 -10 -10 ------- Run | Yrd Mat Min Combat Hostiles Destroyed 22 | . 18 4 Guns 20 | . 16 4 AOE 2 | . 2 . Classes Destroyed 10 | 1 7 2 Worker 2 | . 2 . Builder 2 | . . 2 Tunneler 1 | 1 . . Hauler 1 | . 1 . Recycler 1 | . 1 . Operator 2 | . 2 . Watcher 3 | . 3 . Swarmer 6 | . 6 . Grunt 14 | . 12 2 Sentry 2 | . . 2 Best Kill Streak 4 | 1 4 2 Combat Bots Only 3 | . 3 2 Max Kills in Single Turn 4 | 1 4 1 Gunslinging 1 | . 1 . Exploded 2 | . 2 . Melee . | . . . Uniques/NPCs Destroyed . | . . . Combat | -11 -10 -10 -------- Run | Yrd Mat Min Hostile Shots Fired 110 | . 85 25 Missed 27 | . 25 2 Damage Taken 1006 | . 656 350 Core 253 | . 129 124 Absorbed by Shields . | . . . Core Remaining (%) 100 | 100 . . Volleys Fired 95 | 4 67 24 Largest 2 | 2 2 2 Hottest 80 | 80 80 46 Shots Fired 179 | 8 123 48 Gun 179 | 8 123 48 Cannon . | . . . Launcher . | . . . Special . | . . . Kinetic 137 | . 89 48 Thermal 16 | 4 12 . Explosive . | . . . Electromagnetic 26 | 4 22 . Robot Hit Streak 8 | 5 8 6 Robot Miss Streak 7 | 1 6 7 Penetration Max . | . . . Secondary Targets 2 | . 2 . Max Gunslinging Chain 1 | . 1 . Shots Hit Robots 128 | 7 85 36 Core Hits 66 | 1 48 17 Critical Kills . | . . . Critical Parts Destroyed 1 | . 1 . Critical Strikes 1 | . 1 . Destroy 1 | . 1 . Melee Attacks . | . . . Impact . | . . . Slashing . | . . . Piercing . | . . . Sneak Attacks . | . . . Combat Hostiles . | . . . Follow-up Attacks . | . . . Damage Inflicted 1980 | 87 1370 523 Guns 1888 | 87 1278 523 Cannons . | . . . Explosions 92 | . 92 . Melee . | . . . Ramming . | . . . Kinetic 1600 | . 1077 523 Thermal 212 | 32 180 . Explosive . | . . . Electromagnetic 168 | 55 113 . Impact . | . . . Slashing . | . . . Piercing . | . . . Highest Corruption . | . . . Average Corruption . | . . . Corruption Purged . | . . . Corruption Blocked . | . . . Overload Shots . | . . . Overflow Damage 4 | . 4 . Projectiles . | . . . Explosions 4 | . 4 . Melee . | . . . Knockbacks . | . . . Impact . | . . . Kinetic . | . . . Secondary . | . . . Self-Inflicted Damage . | . . . Shots . | . . . Rammed . | . . . Targets Rammed . | . . . Kicked . | . . . Crushed . | . . . Highest Temperature 72 | 72 48 20 Average Temperature 22 | 38 18 9 Received Heat Transfer 432 | . 267 165 Siege Activations . | . . . Robots Corrupted . | . . . Combat Hostiles . | . . . Parts Fried . | . . . Impact Corruptions . | . . . Robots Melted . | . . . Combat Hostiles . | . . . Parts Melted . | . . . Heat Transferred 425 | 75 350 . Parts Sabotaged . | . . . Parts Stolen . | . . . Parts Stripped . | . . . Power Chain Reactions 1 | . 1 . Alert | -11 -10 -10 ------- Run | Yrd Mat Min Peak Influence 270 | 5 270 169 Initial 84 | . 3 84 Average 129 | 1 147 93 Maximum Alert Level 1 | . 1 . Low Security (%) 74 | 100 65 100 Level 1 25 | . 34 . Level 2 . | . . . Level 3 . | . . . Level 4 . | . . . Level 5 . | . . . High Security . | . . . Max Security . | . . . Squads Dispatched 6 | . 6 . Investigation 4 | . 4 . Extermination . | . . . Reinforcement 2 | . 2 . Assault . | . . . Garrison . | . . . Intercept . | . . . Searches Triggered . | . . . Construction Impeded . | . . . Haulers Reinforced . | . . . Active Scanning Responses . | . . . Cargo Convoy Interrupts . | . . . Stealth | -11 -10 -10 --------- Run | Yrd Mat Min Distress Signals 1 | . 1 . Communications Jammed . | . . . Distress Signals . | . . . Times Spotted 35 | . 29 6 Peak Tracking Total 4 | . 4 2 Tactical Retreats 1 | . 1 . Traps | -11 -10 -10 ------- Run | Yrd Mat Min Traps Triggered 3 | . 3 . Indirectly . | . . . Trap Hack Attempts . | . . . Triggered . | . . . Disarmed . | . . . Reprogrammed . | . . . Reused . | . . . Traps Extracted . | . . . Installed . | . . . Triggered . | . . . Machines | -11 -10 -10 ---------- Run | Yrd Mat Min Machines Disabled 1 | . 1 . Max in Single Turn 1 | . 1 . Machines Repaired . | . . . Machines Dismantled . | . . . Machines Sabotaged . | . . . Overloaded Fab Kills . | . . . Hacking | -11 -10 -10 --------- Run | Yrd Mat Min Machines Accessed 5 | . 5 . Terminals 5 | . 5 . Fabricators . | . . . Repair Stations . | . . . Recycling Units . | . . . Scanalyzers . | . . . Garrison Access . | . . . Total Hacks 13 | . 13 . Successful 8 | . 8 . Failed 5 | . 5 . Catastrophic 2 | . 2 . Database Lockouts . | . . . Manual 7 | . 7 . Terminals 13 | . 13 . Fabricators . | . . . Repair Stations . | . . . Recycling Units . | . . . Scanalyzers . | . . . Garrison Access . | . . . Terminal Hacks 8 | . 8 . Part Schematic 1 | . 1 . Robot Analysis 2 | . 2 . Prototype ID Bank 2 | . 2 . Terminal Index 1 | . 1 . Locate Traps 2 | . 2 . Fabricator Hacks . | . . . Repair Station Hacks . | . . . Recycling Unit Hacks . | . . . Scanalyzer . | . . . Garrison Access Hacks . | . . . Unauthorized Hacks . | . . . Terminals . | . . . Fabricators . | . . . Repair Stations . | . . . Recycling Units . | . . . Scanalyzers . | . . . Garrison Access . | . . . Data Cores Recovered . | . . . Used . | . . . Hacking Detections 4 | . 4 . Full Trace Events 2 | . 2 . Feedback Events . | . . . Feedback Blocked . | . . . Robot Schematics Acquired . | . . . Robots Built . | . . . Authchips . | . . . Time . | . . . Total Robot Build Rating . | . . . Part Schematics Acquired 1 | . 1 . Parts Built . | . . . Authchips . | . . . Time . | . . . Total Part Build Rating . | . . . Parts Repaired . | . . . Time . | . . . Parts Recycled . | . . . Recycled Matter . | . . . Retrieved Matter . | . . . Retrieved Components . | . . . Parts Scanalyzed . | . . . Part Schematics Acquired . | . . . Parts Damaged . | . . . Bothacking | -11 -10 -10 ------------ Run | Yrd Mat Min Used RIF Installer . | . . . Robots Hacked . | . . . Non-combat . | . . . Combat . | . . . Robot Hacks Applied . | . . . Relay Couplers Released . | . . . Fabnet Peak Effective % . | . . . Robots Rewired . | . . . Allies Hacked . | . . . Hacks Repelled . | . . . Allies | -11 -10 -10 -------- Run | Yrd Mat Min Total Allies . | . . . Largest Group . | . . . Highest-Rated Group . | . . . Highest-Rated Ally . | . . . Total Orders . | . . . Ally Attacks . | . . . Total Damage . | . . . Kills . | . . . Allies Corrupted . | . . . Allies Melted . | . . . Intel | -11 -10 -10 ------- Run | Yrd Mat Min Robot Analysis Total 2 | . 2 . Derelict Logs Recovered 1 | . . 1 Drone Launches . | . . . Drone Recoveries . | . . . Exploration | -11 -10 -10 ------------- Run | Yrd Mat Min Turns Passed 2159 | 86 1589 484 Spaces Moved 872 | 42 649 181 Core 6 | 6 . . Treads 572 | 36 536 . Legs . | . . . Wheels 294 | . 113 181 Hover . | . . . Flight . | . . . Fastest Speed 50 | 50 160 215 Average Speed 203 | 144 203 215 Slowest Speed 480 | 160 480 215 Overloaded Moves . | . . . Propulsion Burnouts . | . . . Robots Hopped . | . . . Cave-ins Triggered . | . . . Exploration Rate (%) 39 | 4 77 38 Regions Visited 2 Branch Regions 1 Pre-discovered Areas 1 | . . 1 Known Exits Taken . | . . . Unknown Exits Taken 2 | 1 1 . Scrap Searched 1 | . . 1 Spaces Dug . | . . . Terrain Destroyed 1 | . 1 . Melee . | . . . Projectile . | . . . AOE 1 | . 1 . Terrain Rammed . | . . . Walls Destroyed . | . . . Machines Disabled . | . . . Actions | -11 -10 -10 --------- Run | Yrd Mat Min Total 1079 | 56 795 228 Wait 51 | . 41 10 Move 870 | 41 648 181 Hop . | . . . Pick Up 30 | 4 20 6 Fast Attach 12 | 7 3 2 Attach 2 | . 2 . Detach 1 | . . 1 Swap 6 | . 3 3 Drop 12 | . 11 1 Fire 95 | 4 67 24 Melee . | . . . Ram . | . . . Kick . | . . . Crush . | . . . Escape Stasis . | . . . Rewire . | . . . Trap . | . . . Miscellaneous . | . . . Route ------- -11/Scrapyard -10/Materials (discovered 4 exits: [*Mat x2] / [*Min x2]) -10/Mines History --------- Turn | Location | Event 5 | -11/Scrapyard | Discovered new exit (range 15) 87 | -11/Scrapyard | Entered Materials 220 | -10/Materials | Discovered new exit (range 16) 287 | -10/Materials | Discovered new exit (range 6) 323 | -10/Materials | Build established: Mutant 575 | -10/Materials | Discovered new exit (range 6) 734 | -10/Materials | Discovered new exit (range 11) 1592 | -10/Materials | Core integrity fell below 50% 1676 | -10/Materials | Entered Mines 1677 | -10/Mines | Learned location of Storage (-7) 1793 | -10/Mines | Found a damaged Exp. Sensor Array with a note attached 1797 | -10/Mines | Found Prototype Device 1798 | -10/Mines | Identified Exp. Sensor Array 1910 | -10/Mines | Learned location of 1 exit from Materials 2058 | -10/Mines | Core integrity fell below 20% 2160 | -10/Mines | Destroyed by G-47 Trooper with Particle Gun Last Messages --------------- 01914_ Found 20 Matter. 01914_ Found 17 Matter. 01915_ Acquired 14 matter. 01918_ Acquired Lgt. Assault Rifle. 01927_ Acquired 8 matter. 01976_ U-05 Engineer destroyed. 01984_ Acquired 13 matter. 02000_ U-05 Engineer destroyed. 02010_ Acquired Structural Scanner. 02012_ Acquired 24 matter. 02027_ Acquired 4 matter. 02029_ Acquired 19 matter. 02032_ K-01 Serf collects debris. 02065_ Y-45 Defender destroyed. 02083_ Acquired 49 matter. 02085_ Acquired 13 matter. 02090_ Acquired Lgt. Armor Plating. 02106_ Acquired Beam Cannon. 02109_ Acquired Targeting Computer. 02158_ Critical hit (Burn: +37). Map ----- +----------------------------------------------------+ | ????????????????????????????????? | | ????????????????????????????????? | | ????????????????????????????????? | | ????????????????????????????????? | | ????????????????????????????????? | | ????????????????????????????????? | | ????????????????????????????????? | | ????????????????????????????????? | | ????????????????????????????????? | | ????????????????????????????????? | | ??????????????????????????# ????? | | ?????????????????????????# ????? | | ????????????????????????? ????? | | ????????????????????????? ????? | | ????????????????????????? ????? | | ????????????????????????? ????? | | ????????????????????????? ?????? | | ????????????????????????# ?????? | | ????????????????????????# ?????? | | ????????????????????????# ?????? | | ???????????????????????? ?????? | | ???????????????????????? ?????? | | ????????????????????????# #?????? | | ????????????????????????# #?????? | | ????????????????????????# #?????? | | ???????????????????# ####@#?????? | | ???????????????????# g #?????? | | ???????????????????###### #?????? | | ????????????????????##### #?????? | | ????????????????????# #?????? | | ?????? ###### ####?????? | | ?????? ##???????? | | ??????????# ###### ##???????? | | ???????????# ####### ##???????? | | ?????????########## ##???????? | | ??????????###" ## ##???????? | | #?##########"" # ####??????? | | ??# ### ! + ####?????? | | ??# """ ### ! +!!# ###?????? | | ??# """ ###"" # %# ##?????? | | ??# """ ####" ## ###????? | | ??# ######### ###????? | | ??# """ #?####### ##????? | | ??# """ ##?????### ##????? | | #?# """ #??????### ## ###????? | | ?## #???????## #######????? | | #?# #???????## ######?????? | | ########*########## ##?????????? | | ###### ########## ##?????????? | | %=##?????????? | +----------------------------------------------------+ Best States ------------- Heat Dissipation 39 Energy Generation 10 Energy Capacity 250 Matter Stores 300 Matter Capacity 300 Sight Range 16 Terrain Scan Range 16 Terrain Scan Density 10 Armor Coverage 150 Evasion (%) 40 Recoil Reduction 2 Item Schematics ----------------- Huge Storage Unit | -10/Materials | Hacked Robot Schematics ------------------ None Fabricated ------------ Nothing Alien Tech Used ----------------- None Achievements -------------- None Challenges ------------ None Game ------ Seed SuspensionGuidanceBlade Manual? 0 Play Time 00:13:51 Cumulative 48.8 hours Start 2024.04.26 @ 18:56:57 End 2024.04.26 @ 19:08:54 Sessions 1 Manual Loads 0 Difficulty Rogue Special Mode None Game No. 66 Rogue 66 Adventurer 0 Explorer 0 Win Type - Total 1 Types 1/0/0/0/0/0/0/0/0 Lore% 27 Gallery% 42 Achievement% 31 Wizard Run 0 Options --------- Layout 1 ASCII 0 Keyboard 0 Movement Mouse Keybinds 0 Fullscreen 1 Font 24/Smallcaps Map View 50x35 Zoom Use 0% Tactical HUD 1 Map Filters NONE Filters NONE Steam 1 RUN: 63e9459c-fe37-49cd-acba-6489776c11a3